fUSD/lending_fUSD_20240329
["ID","MTS","AMOUNT","RATE_DAILY","PERIOD"]
[320954663,1711721479823,-500.0,0.00050136,120]
[320954664,1711721479832,-556.58,0.00050136,120]
[320954665,1711721479842,-500.0,0.00050136,120]
[320954666,1711721479851,-539.37732361,0.00050136,120]
[320954667,1711721479860,-3254.17,0.00050136,120]
[320954668,1711721479869,-1273.09,0.00050136,120]
[320954669,1711721479879,-500.0,0.00050136,120]
[320954670,1711721479888,-500.0,0.00050136,120]
[320954671,1711721479898,-741.31,0.00050136,120]
[320954672,1711721479907,-622.97,0.00050136,120]
[320954673,1711721479917,-500.0,0.00050136,120]
[320954674,1711721479927,-500.0,0.00050136,120]
[320954675,1711721479936,-747.32,0.00050136,120]
[320954676,1711721479945,-500.0,0.00050136,120]
[320954677,1711721479955,-500.0,0.00050136,120]
[320954678,1711721479964,-579.78,0.00050136,120]
[320954679,1711721479974,-639.33,0.00050136,120]
[320954680,1711721479983,-1490.8,0.00050136,120]
[320954681,1711721479992,-500.0,0.00050136,120]
[320954682,1711721480002,-500.0,0.00050136,120]
[320954683,1711721480012,-500.0,0.00050136,120]
[320954684,1711721480022,-500.0,0.00050136,120]
[320954685,1711721480032,-500.0,0.00050136,120]
[320954686,1711721480042,-1000.0,0.00050136,120]
[320954687,1711721480052,-500.0,0.00050136,120]
[320954688,1711721480063,-1635.18,0.00050136,120]
[320954689,1711721480073,-553.82,0.00050136,120]
[320954690,1711721480083,-1076.6,0.00050136,120]
[320954691,1711721480093,-1031.96,0.00050136,120]
[320954692,1711721480102,-500.0,0.00050136,120]
[320954693,1711721480114,-627.97,0.00050136,120]
[320954694,1711721480124,-1467.64,0.00050136,120]
[320954695,1711721480134,-500.0,0.00050136,120]
[320954696,1711721480143,-500.0,0.00050136,120]
[320954697,1711721480154,-526.70255043,0.00050136,120]
[320954698,1711721480164,-500.0,0.00050136,120]
[320954699,1711721480174,-500.0,0.00050136,120]
[320954700,1711721480185,-578.16,0.00050136,120]
[320954701,1711721480195,-500.0,0.00050136,120]
[320954702,1711721480205,-968.69,0.00050136,120]
[320954703,1711721480215,-500.0,0.00050136,120]
[320954704,1711721480225,-2131.51,0.00050136,120]
[320954705,1711721480235,-500.0,0.00050136,120]
[320954706,1711721480245,-522.0,0.00050137,60]
[320954707,1711721480254,-1187.569,0.00050158,120]
[320954708,1711721480264,-4596.951,0.00050158,120]
[320954709,1711721480273,-2465.798,0.00050158,120]
[320954710,1711721480284,-4796.698,0.00050158,120]
[320954711,1711721480294,-42999.0,0.00050158,120]
[320954712,1711721480305,-1055.808,0.00050158,120]
[320954713,1711721480315,-161.10517092,0.00050187,60]
[320954714,1711721480325,-717.0,0.0005027,15]
[320954715,1711721480335,-393.0,0.0005027,15]
[320954716,1711721480345,-150.5,0.0005027,15]
[320954717,1711721480355,-717.0,0.0005028,15]
[320954718,1711721480365,-393.0,0.0005028,15]
[320954719,1711721480374,-150.5,0.0005028,15]
[320954720,1711721480384,-717.0,0.0005029,15]
[320954721,1711721480395,-393.0,0.0005029,15]
[320954722,1711721480404,-150.5,0.0005029,15]
[320954723,1711721480414,-154.71689511,0.00050326,60]
[320954724,1711721480424,-158.30237148,0.00050334,60]
[320954725,1711721480434,-524.16520681,0.0005041,120]
[320954726,1711721480443,-500.0,0.0005041,120]
[320954727,1711721480453,-500.0,0.0005041,120]
[320954728,1711721480464,-297.57169885,0.0005041,120]
[320954729,1711721480473,-500.0,0.0005041,120]
[320954730,1711721480483,-500.0,0.0005041,120]
[320954731,1711721480493,-500.0,0.0005041,120]
[320954732,1711721480503,-500.0,0.0005041,120]
[320954733,1711721480513,-530.66086323,0.0005041,120]
[320954734,1711721480523,-528.16915916,0.0005041,120]
[320954735,1711721480533,-188.50341683,0.0005041,120]
[320954736,1711721480543,-500.0,0.0005041,120]
[320954737,1711721480552,-500.0,0.0005041,120]
[320954738,1711721480562,-500.0,0.0005041,120]
[320954739,1711721480572,-500.0,0.0005041,120]
[320954740,1711721480582,-500.0,0.0005041,120]
[320954741,1711721480592,-500.0,0.0005041,120]
[320954742,1711721480602,-418.58364621,0.0005041,120]
[320954743,1711721480612,-500.0,0.0005041,120]
[320954744,1711721480622,-500.0,0.0005041,120]
[320954745,1711721480632,-500.0,0.0005041,120]
[320954746,1711721480642,-500.0,0.0005041,120]
[320954747,1711721480652,-500.0,0.0005041,120]
[320954748,1711721480661,-231.12216289,0.0005041,120]
[320954749,1711721480671,-637.24,0.0005041,120]
[320954750,1711721480680,-500.0,0.0005041,120]
[320954751,1711721480690,-500.0,0.0005041,120]
[320954752,1711721480699,-500.0,0.0005041,120]
[320954753,1711721480710,-500.0,0.0005041,120]
[320954754,1711721480719,-500.0,0.0005041,120]
[320954755,1711721480730,-512.55085476,0.0005041,120]
[320954756,1711721480741,-329.56499025,0.0005041,120]
[320954757,1711721480750,-500.0,0.0005041,120]
[320954758,1711721480760,-523.80699378,0.0005041,120]
[320954759,1711721480770,-500.0,0.0005041,120]
[320954760,1711721480780,-500.0,0.0005041,120]
[320954761,1711721480789,-500.0,0.0005041,120]
[320954762,1711721480799,-500.0,0.0005041,120]
[320954763,1711721480808,-527.0,0.0005041,120]
[320954764,1711721480818,-500.0,0.0005041,120]
[320954765,1711721480828,-203.61704557,0.0005041,120]
[320954766,1711721480838,-500.0,0.0005041,120]
[320954767,1711721480848,-500.0,0.0005041,120]
[320954768,1711721480857,-500.0,0.0005041,120]
[320954769,1711721480866,-500.0,0.0005041,120]
[320954770,1711721480875,-500.0,0.0005041,120]
[320954771,1711721480885,-500.0,0.0005041,60]
[320954772,1711721480894,-311.0,0.0005041,60]
[320954773,1711721480904,-500.0,0.0005041,120]
[320954774,1711721480915,-304.0,0.0005041,60]
[320954775,1711721480925,-500.0,0.0005041,120]
[320954776,1711721480934,-520.11,0.0005041,120]
[320954777,1711721480944,-521.87161621,0.0005041,120]
[320954778,1711721480954,-300.0,0.0005041,60]
[320954779,1711721480963,-507.0,0.0005041,60]
[320954780,1711721480973,-500.0,0.0005041,120]
[320954781,1711721480983,-500.0,0.0005041,120]
[320954782,1711721480992,-184.53982119,0.0005041,120]
[320954783,1711721481002,-616.06883996,0.0005041,120]
[320954784,1711721481012,-621.74055199,0.0005041,120]
[320954785,1711721481021,-500.0,0.0005041,120]
[320954786,1711721481031,-531.49854022,0.0005041,120]
[320954787,1711721481041,-500.0,0.0005041,120]
[320954788,1711721481051,-224.93787781,0.0005041,120]
[320954789,1711721481256,-500.0,0.0005041,120]
[320954790,1711721481267,-209.469239,0.0005041,120]
[320954791,1711721481277,-702.15,0.0005041,120]
[320954792,1711721481286,-500.0,0.0005041,120]
[320954793,1711721481296,-500.0,0.0005041,2]
[320954794,1711721481306,-500.0,0.0005041,120]
[320954795,1711721481316,-500.0,0.0005041,120]
[320954796,1711721481326,-500.0,0.0005041,120]
[320954797,1711721481335,-500.0,0.0005041,120]
[320954798,1711721481344,-500.0,0.0005041,120]
[320954799,1711721481354,-500.0,0.0005041,120]
[320954800,1711721481363,-500.0,0.0005041,120]
[320954801,1711721481373,-514.33219285,0.0005041,120]
[320954802,1711721481382,-541.98869138,0.0005041,120]
[320954803,1711721481392,-500.0,0.0005041,120]
[320954804,1711721481402,-500.0,0.0005041,120]
[320954805,1711721481412,-2032.52,0.0005041,120]
[320954806,1711721481422,-500.0,0.0005041,120]
[320954807,1711721481432,-500.0,0.0005041,120]
[320954808,1711721481442,-500.0,0.0005041,120]
[320954809,1711721481452,-500.0,0.0005041,30]
[320954810,1711721481463,-500.0,0.0005041,120]
[320954811,1711721481473,-606.95751406,0.0005041,120]
[320954812,1711721481483,-254.88974922,0.0005041,120]
[320954813,1711721481493,-500.0,0.0005041,120]
[320954814,1711721481502,-523.19,0.0005041,120]
[320954815,1711721481512,-500.0,0.0005041,120]
[320954816,1711721481522,-500.0,0.0005041,120]
[320954817,1711721481532,-536.91,0.0005041,120]
[320954818,1711721481542,-500.0,0.0005041,120]
[320954819,1711721481551,-439.93927463,0.0005041,120]
[320954820,1711721481561,-500.0,0.0005041,120]
[320954821,1711721481571,-500.0,0.0005041,120]
[320954822,1711721481580,-500.0,0.0005041,120]
[320954823,1711721481590,-471.99296241,0.0005041,120]
[320954824,1711721481600,-500.0,0.0005041,120]
[320954825,1711721481610,-500.0,0.0005041,120]
[320954826,1711721481619,-500.0,0.0005041,120]
[320954827,1711721481629,-500.0,0.0005041,120]
[320954828,1711721481638,-500.0,0.0005041,120]
[320954829,1711721481648,-500.0,0.0005041,120]
[320954830,1711721481657,-500.0,0.0005041,120]
[320954831,1711721481666,-500.0,0.0005041,120]
[320954832,1711721481676,-500.0,0.0005041,120]
[320954833,1711721481685,-500.0,0.0005041,120]
[320954834,1711721481695,-540.69,0.0005041,120]
[320954835,1711721481706,-500.0,0.0005041,120]
[320954836,1711721481715,-500.0,0.0005041,120]
[320954837,1711721481724,-587.508535,0.0005041,120]
[320954838,1711721481734,-500.0,0.0005041,120]
[320954839,1711721481746,-397.63382538,0.0005041,120]
[320954840,1711721481756,-500.0,0.0005041,120]
[320954841,1711721481765,-500.0,0.0005041,120]
[320954842,1711721481776,-294.16944964,0.0005041,120]
[320954843,1711721481785,-535.34496696,0.0005041,120]
[320954844,1711721481795,-247.96776919,0.0005041,120]
[320954845,1711721481804,-500.0,0.0005041,120]
[320954846,1711721481814,-500.0,0.0005041,120]
[320954847,1711721481825,-500.0,0.0005041,120]
[320954848,1711721481835,-500.0,0.0005041,120]
[320954849,1711721481845,-500.0,0.0005041,120]
[320954850,1711721481854,-500.0,0.0005041,120]
[320954851,1711721481864,-500.0,0.0005041,120]
[320954852,1711721481873,-500.0,0.0005041,120]
[320954853,1711721481883,-500.0,0.0005041,120]
[320954854,1711721481893,-394.89012985,0.0005041,120]
[320954855,1711721481902,-511.3,0.0005041,120]
[320954856,1711721481911,-500.0,0.0005041,120]
[320954857,1711721481921,-500.0,0.0005041,120]
[320954858,1711721481930,-364.29588622,0.0005041,120]
[320954859,1711721481940,-500.0,0.0005041,120]
[320954860,1711721481949,-500.0,0.0005041,120]
[320954861,1711721481960,-500.0,0.0005041,120]
[320954862,1711721481969,-500.0,0.0005041,120]
[320954863,1711721481978,-500.0,0.0005041,120]
[320954864,1711721481987,-500.0,0.0005041,120]
[320954865,1711721481997,-500.0,0.0005041,120]
[320954866,1711721482006,-500.0,0.0005041,120]
[320954867,1711721482016,-500.0,0.0005041,120]
[320954868,1711721482026,-500.0,0.0005041,120]
[320954869,1711721482035,-296.67222256,0.0005041,120]
[320954870,1711721482044,-429.59446305,0.0005041,120]
[320954871,1711721482054,-500.0,0.0005041,120]
[320954872,1711721482063,-593.05764614,0.0005041,120]
[320954873,1711721482073,-500.0,0.0005041,120]
[320954874,1711721482082,-500.0,0.0005041,120]
[320954875,1711721482092,-500.0,0.0005041,120]
[320954876,1711721482101,-500.89003801,0.0005041,120]
[320954877,1711721482110,-353.23819791,0.0005041,120]
[320954878,1711721482119,-500.0,0.0005041,30]
[320954879,1711721482129,-500.0,0.0005041,120]
[320954880,1711721482138,-449.50997352,0.0005041,120]
[320954881,1711721482147,-464.37718227,0.0005041,120]
[320954882,1711721482157,-154.73485144,0.0005041,120]
[320954883,1711721482167,-500.0,0.0005041,120]
[320954884,1711721482176,-500.0,0.0005041,120]
[320954885,1711721482186,-497.33262781,0.0005041,120]
[320954886,1711721482195,-500.0,0.0005041,120]
[320954887,1711721482206,-500.0,0.0005041,120]
[320954888,1711721482215,-500.0,0.0005041,120]
[320954889,1711721482225,-486.23323418,0.0005041,120]
[320954890,1711721482235,-500.0,0.0005041,120]
[320954891,1711721482244,-624.59979124,0.0005041,120]
[320954892,1711721482254,-500.0,0.0005041,120]
[320954893,1711721482264,-500.0,0.0005041,120]
[320954894,1711721482274,-191.94201744,0.0005041,120]
[320954895,1711721482284,-500.0,0.0005041,120]
[320954896,1711721482293,-539.6182226,0.0005041,120]
[320954897,1711721482303,-500.0,0.0005041,120]
[320954898,1711721482313,-500.0,0.0005041,120]
[320954899,1711721482322,-397.92362321,0.0005041,120]
[320954900,1711721482332,-500.0,0.0005041,120]
[320954901,1711721482341,-500.0,0.0005041,120]
[320954902,1711721482351,-500.0,0.0005041,2]
[320954903,1711721482361,-500.0,0.0005041,120]
[320954904,1711721482370,-500.0,0.0005041,120]
[320954905,1711721482381,-500.0,0.0005041,120]
[320954906,1711721482390,-500.0,0.0005041,120]
[320954907,1711721482399,-500.0,0.0005041,120]
[320954908,1711721482409,-500.0,0.0005041,120]
[320954909,1711721482419,-392.21044371,0.0005041,120]
[320954910,1711721482429,-500.0,0.0005041,120]
[320954911,1711721482438,-500.0,0.0005041,120]
[320954912,1711721482448,-569.03027514,0.0005041,120]
[320954913,1711721482458,-566.16620487,0.0005041,120]
[320954914,1711721482467,-500.0,0.0005041,120]
[320954915,1711721482477,-500.0,0.0005041,120]
[320954916,1711721482486,-500.0,0.0005041,120]
[320954917,1711721482496,-500.0,0.0005041,120]
[320954918,1711721482504,-539.4,0.0005041,120]
[320954919,1711721482514,-500.0,0.0005041,120]
[320954920,1711721482523,-500.0,0.0005041,120]
[320954921,1711721482532,-500.0,0.0005041,120]
[320954922,1711721482542,-237.34115219,0.0005041,120]
[320954923,1711721482555,-500.0,0.0005041,120]
[320954924,1711721482565,-559.20877696,0.0005041,120]
[320954925,1711721482575,-500.0,0.0005041,120]
[320954926,1711721482585,-500.0,0.0005041,120]
[320954927,1711721482595,-188.61,0.0005041,120]
[320954928,1711721482604,-500.0,0.0005041,120]
[320954929,1711721482614,-500.0,0.0005041,120]
[320954930,1711721482624,-534.32658627,0.0005041,120]
[320954931,1711721482634,-500.0,0.0005041,120]
[320954932,1711721482644,-500.0,0.0005041,120]
[320954933,1711721482653,-500.0,0.0005041,120]
[320954934,1711721482663,-500.0,0.0005041,120]
[320954935,1711721482673,-500.0,0.0005041,2]
[320954936,1711721482683,-500.0,0.0005041,120]
[320954937,1711721482693,-500.0,0.0005041,120]
[320954938,1711721482702,-500.0,0.0005041,120]
[320954939,1711721482713,-500.0,0.0005041,120]
[320954940,1711721482723,-500.0,0.0005041,120]
[320954941,1711721482737,-521.78307531,0.0005041,120]
[320954942,1711721482747,-500.0,0.0005041,120]
[320954943,1711721482756,-500.0,0.0005041,120]
[320954944,1711721482766,-500.0,0.0005041,120]
[320954945,1711721482776,-500.0,0.0005041,120]
[320954946,1711721482785,-500.0,0.0005041,120]
[320954947,1711721482796,-500.0,0.0005041,120]
[320954948,1711721482805,-500.0,0.0005041,120]
[320954949,1711721482816,-500.0,0.0005041,120]
[320954950,1711721482827,-500.0,0.0005041,120]
[320954951,1711721482837,-500.0,0.0005041,120]
[320954952,1711721482847,-550.39852283,0.0005041,120]
[320954953,1711721482857,-500.0,0.0005041,120]
[320954954,1711721482866,-500.0,0.0005041,120]
[320954955,1711721482875,-500.0,0.0005041,120]
[320954956,1711721482885,-500.0,0.0005041,120]
[320954957,1711721482894,-500.0,0.0005041,120]
[320954958,1711721482906,-500.0,0.0005041,120]
[320954959,1711721482915,-500.0,0.0005041,120]
[320954960,1711721482925,-500.0,0.0005041,120]
[320954961,1711721482935,-500.0,0.0005041,120]
[320954962,1711721482944,-500.0,0.0005041,120]
[320954963,1711721482954,-500.0,0.0005041,120]
[320954964,1711721482964,-500.0,0.0005041,120]
[320954965,1711721482973,-500.0,0.0005041,120]
[320954966,1711721482982,-500.0,0.0005041,120]
[320954967,1711721482992,-500.0,0.0005041,120]
[320954968,1711721483002,-500.0,0.0005041,120]
[320954969,1711721483011,-563.11,0.0005041,120]
[320954970,1711721483021,-500.0,0.0005041,120]
[320954971,1711721483031,-219.50192165,0.0005041,120]
[320954972,1711721483040,-500.0,0.0005041,120]
[320954973,1711721483050,-500.0,0.0005041,120]
[320954974,1711721483059,-500.0,0.0005041,120]
[320954975,1711721483068,-500.0,0.0005041,120]
[320954976,1711721483078,-500.0,0.0005041,120]
[320954977,1711721483087,-500.0,0.0005041,120]
[320954978,1711721483096,-500.0,0.0005041,120]
[320954979,1711721483106,-500.0,0.0005041,120]
[320954980,1711721483115,-500.0,0.0005041,120]
[320954981,1711721483125,-500.0,0.0005041,120]
[320954982,1711721483135,-500.0,0.0005041,120]
[320954983,1711721483145,-500.0,0.0005041,120]
[320954984,1711721483154,-500.0,0.0005041,120]
[320954985,1711721483164,-500.0,0.0005041,120]
[320954986,1711721483174,-500.0,0.0005041,120]
[320954987,1711721483183,-500.0,0.0005041,120]
[320954988,1711721483193,-500.0,0.0005041,120]
[320954989,1711721483203,-500.0,0.0005041,120]
[320954990,1711721483214,-500.0,0.0005041,120]
[320954991,1711721483223,-500.0,0.0005041,120]
[320954992,1711721483233,-695.58,0.0005041,120]
[320954993,1711721483243,-500.0,0.0005041,120]
[320954994,1711721483252,-500.0,0.0005041,120]
[320954995,1711721483262,-500.0,0.0005041,120]
[320954996,1711721483271,-1476.12,0.0005041,120]
[320954997,1711721483281,-500.0,0.0005041,120]
[320954998,1711721483291,-533.12125422,0.0005041,120]
[320954999,1711721483300,-900.44,0.0005041,120]
[320955000,1711721483310,-500.0,0.0005041,120]
[320955001,1711721483320,-541.23057722,0.0005041,120]
[320955002,1711721483329,-500.0,0.0005041,120]
[320955003,1711721483339,-607.78,0.0005041,120]
[320955004,1711721483349,-500.0,0.0005041,120]
[320955005,1711721483359,-546.4,0.0005041,120]
[320955006,1711721483369,-500.0,0.0005041,120]
[320955007,1711721483379,-500.0,0.0005041,120]
[320955008,1711721483389,-1452.59,0.0005041,120]
[320955009,1711721483399,-987.25,0.0005041,120]
[320955010,1711721483408,-743.76,0.0005041,120]
[320955011,1711721483418,-500.0,0.0005041,120]
[320955012,1711721483427,-939.77,0.0005041,120]
[320955013,1711721483437,-500.0,0.0005041,120]
[320955014,1711721483447,-500.0,0.0005041,120]
[320955015,1711721483457,-500.0,0.0005041,120]
[320955016,1711721483467,-500.0,0.0005041,120]
[320955017,1711721483476,-894.21,0.0005041,120]
[320955018,1711721483486,-500.0,0.0005041,120]
[320955019,1711721483495,-1140.0,0.0005041,120]
[320955020,1711721483505,-500.0,0.0005041,120]
[320955021,1711721483515,-1627.67,0.0005041,120]
[320955022,1711721483524,-508.58,0.0005041,120]
[320955023,1711721483534,-1032.63,0.0005041,120]
[320955024,1711721483544,-3279.75,0.0005041,120]
[320955025,1711721483554,-3061.85,0.0005041,120]
[320955026,1711721483563,-500.0,0.0005041,120]
[320955027,1711721483573,-500.0,0.0005041,120]
[320955028,1711721483582,-522.71,0.0005041,120]
[320955029,1711721483591,-1319.96,0.0005041,120]
[320955030,1711721483600,-500.0,0.0005041,120]
[320955031,1711721483610,-15867.17,0.0005041,120]
[320955032,1711721483619,-1675.75,0.0005041,120]
[320955033,1711721483628,-1560.02,0.0005041,120]
[320955034,1711721483637,-1118.96,0.0005041,120]
[320955035,1711721483646,-500.0,0.0005041,120]
[320955036,1711721483724,-541.13804112,0.0005041,120]
[320955037,1711721483735,-967.68,0.0005041,120]
[320955038,1711721483746,-608.15,0.0005041,120]
[320955039,1711721483755,-500.0,0.0005041,120]
[320955040,1711721483764,-1421.12,0.0005041,120]
[320955041,1711721483773,-500.0,0.0005041,120]
[320955042,1711721483783,-796.35,0.0005041,120]
[320955043,1711721483792,-500.0,0.0005041,120]
[320955044,1711721483801,-500.0,0.0005041,7]
[320955045,1711721483810,-500.0,0.0005041,120]
[320955046,1711721483819,-583.97,0.0005041,120]
[320955047,1711721483830,-500.0,0.0005041,120]
[320955048,1711721483839,-1038.38,0.0005041,120]
[320955049,1711721483849,-7190.42,0.0005041,120]
[320955050,1711721483859,-1116.7,0.0005041,120]
[320955051,1711721483868,-500.0,0.0005041,120]
[320955052,1711721483878,-500.0,0.0005041,120]
[320955053,1711721483887,-509.07,0.0005041,120]
[320955054,1711721483896,-500.0,0.0005041,120]
[320955055,1711721483906,-538.38000173,0.0005041,120]
[320955056,1711721483915,-524.75311825,0.0005041,120]
[320955057,1711721483925,-702.78,0.0005041,120]
[320955058,1711721483934,-500.0,0.0005041,120]
[320955059,1711721483944,-500.0,0.0005041,120]
[320955060,1711721483953,-3016.23,0.0005041,120]
[320955061,1711721483964,-500.0,0.0005041,120]
[320955062,1711721483972,-500.0,0.0005041,120]
[320955063,1711721483982,-1173.93,0.0005041,120]
[320955064,1711721483991,-500.0,0.0005041,120]
[320955065,1711721484002,-1914.75,0.0005041,120]
[320955066,1711721484011,-1271.74,0.0005041,120]
[320955067,1711721484020,-620.53,0.0005041,120]
[320955068,1711721484029,-656.72,0.0005041,120]
[320955069,1711721484038,-500.0,0.0005041,120]
[320955070,1711721484047,-500.0,0.0005041,120]
[320955071,1711721484056,-500.0,0.0005041,120]
[320955072,1711721484066,-2949.66,0.0005041,120]
[320955073,1711721484075,-500.0,0.0005041,120]
[320955074,1711721484084,-500.0,0.0005041,120]
[320955075,1711721484094,-500.0,0.0005041,120]
[320955076,1711721484103,-500.0,0.0005041,120]
[320955077,1711721484112,-500.0,0.0005041,120]
[320955078,1711721484121,-666.66,0.0005041,120]
[320955079,1711721484130,-500.0,0.0005041,120]
[320955080,1711721484139,-755.48,0.0005041,120]
[320955081,1711721484148,-500.0,0.0005041,120]
[320955082,1711721484157,-1139.02,0.0005041,120]
[320955083,1711721484166,-504.5,0.0005041,120]
[320955084,1711721484176,-550.55,0.0005041,120]
[320955085,1711721484185,-2635.4,0.0005041,120]
[320955086,1711721484194,-1127.22,0.0005041,120]
[320955087,1711721484203,-571.73,0.0005041,120]
[320955088,1711721484213,-500.0,0.0005041,120]
[320955089,1711721484222,-561.64,0.0005041,120]
[320955090,1711721484231,-5797.8,0.0005041,120]
[320955091,1711721484241,-659.67,0.0005041,120]
[320955092,1711721484250,-500.0,0.0005041,120]
[320955093,1711721484259,-852.21,0.0005041,120]
[320955094,1711721484269,-777.84,0.0005041,120]
[320955095,1711721484278,-953.39,0.0005041,120]
[320955096,1711721484288,-538.99,0.0005041,120]
[320955097,1711721484297,-1011.18,0.0005041,120]
[320955098,1711721484306,-478.93453157,0.0005041,120]
[320955099,1711721484315,-500.0,0.0005041,120]
[320955100,1711721484324,-500.0,0.0005041,120]
[320955101,1711721484333,-831.93,0.0005041,120]
[320955102,1711721484343,-758.01,0.0005041,120]
[320955103,1711721484352,-1019.27,0.0005041,120]
[320955104,1711721484362,-508.68621423,0.0005041,120]
[320955105,1711721484371,-1859.09,0.0005041,120]
[320955106,1711721484380,-500.0,0.0005041,120]
[320955107,1711721484389,-500.0,0.0005041,80]
[320955108,1711721484399,-1375.8,0.0005041,120]
[320955109,1711721484409,-1237.12,0.0005041,120]
[320955110,1711721484418,-1303.91,0.0005041,120]
[320955111,1711721484428,-500.0,0.0005041,120]
[320955112,1711721484437,-500.0,0.0005041,120]
[320955113,1711721484446,-2340.36,0.0005041,120]
[320955114,1711721484456,-1120.19,0.0005041,120]
[320955115,1711721484466,-599.9,0.0005041,120]
[320955116,1711721484475,-518.83,0.0005041,120]
[320955117,1711721484485,-1073.01,0.0005041,120]
[320955118,1711721484494,-1620.53,0.0005041,120]
[320955119,1711721484504,-2553.22,0.0005041,120]
[320955120,1711721484514,-2095.82,0.0005041,120]
[320955121,1711721484523,-500.0,0.0005041,120]
[320955122,1711721484534,-759.3,0.0005041,120]
[320955123,1711721484543,-1293.35,0.0005041,120]
[320955124,1711721484553,-500.0,0.0005041,120]
[320955125,1711721484562,-296.41055645,0.0005041,120]
[320955126,1711721484572,-186.62073474,0.0005041,120]
[320955127,1711721484582,-500.0,0.0005041,120]
[320955128,1711721484592,-500.0,0.0005041,120]
[320955129,1711721484601,-521.52,0.0005041,120]
[320955130,1711721484611,-500.0,0.0005041,120]
[320955131,1711721484621,-3958.07,0.0005041,120]
[320955132,1711721484630,-528.84,0.0005041,120]
[320955133,1711721484640,-827.58,0.0005041,120]
[320955134,1711721484649,-500.0,0.0005041,120]
[320955135,1711721484659,-10208.37,0.0005041,120]
[320955136,1711721484668,-500.0,0.0005041,120]
[320955137,1711721484678,-1483.13,0.0005041,120]
[320955138,1711721484687,-500.0,0.0005041,120]
[320955139,1711721484697,-500.0,0.0005041,120]
[320955140,1711721484706,-709.97,0.0005041,120]
[320955141,1711721484717,-500.0,0.0005041,120]
[320955142,1711721484729,-2258.08,0.0005041,120]
[320955143,1711721484746,-537.69181935,0.0005041,120]
[320955144,1711721484757,-500.0,0.0005041,120]
[320955145,1711721484767,-500.0,0.0005041,120]
[320955146,1711721484777,-811.38,0.0005041,120]
[320955147,1711721484786,-1213.11,0.0005041,120]
[320955148,1711721484798,-679.62,0.0005041,120]
[320955149,1711721484809,-500.0,0.0005041,120]
[320955150,1711721484819,-500.0,0.0005041,120]
[320955151,1711721484829,-537.73419797,0.0005041,120]
[320955152,1711721484839,-500.0,0.0005041,120]
[320955153,1711721484849,-500.0,0.0005041,120]
[320955154,1711721484859,-500.0,0.0005041,120]
[320955155,1711721484868,-500.0,0.0005041,120]
[320955156,1711721484878,-1260.6,0.0005041,120]
[320955157,1711721484887,-1157.9,0.0005041,120]
[320955158,1711721484897,-920.83,0.0005041,120]
[320955159,1711721484906,-2746.44,0.0005041,120]
[320955160,1711721484915,-500.0,0.0005041,120]
[320955161,1711721484926,-500.0,0.0005041,60]
[320955162,1711721484935,-591.05,0.0005041,120]